fUSD/lending_fUSD_20250523
["ID","MTS","AMOUNT","RATE_DAILY","PERIOD"]
[362114221,1748002293429,-1068.14,0.00028767,4]
[362114222,1748002293438,-420.0,0.00028767,4]
[362114223,1748002293448,-420.0,0.00028767,4]
[362114224,1748002293459,-420.0,0.00028767,4]
[362114225,1748002293469,-636.93,0.00028767,4]
[362114226,1748002293479,-420.0,0.00028767,4]
[362114227,1748002293489,-1034.39,0.00028767,4]
[362114228,1748002293499,-420.0,0.00028767,4]
[362114229,1748002293512,-509.01,0.00028767,4]
[362114230,1748002293523,-420.0,0.00028767,2]
[362114231,1748002293533,-745.56,0.00028767,4]
[362114232,1748002293543,-274.4,0.00028767,4]
[362114233,1748002293554,-635.16,0.00028767,2]
[362114234,1748002293564,-11586.6250273,0.0002878,2]
[362114235,1748002293573,-4748.5475772,0.0002878,2]
[362114236,1748002293584,-399.98081494,0.0002879,5]
[362114237,1748002293594,-949.75187007,0.0002879,2]
[362114238,1748002293603,-249.73,0.00028791,2]
[362114239,1748002293613,-1000.0,0.00028798,2]
[362114240,1748002293622,-47727.06012787,0.000288,2]
[362114241,1748002293632,-14985.6,0.000288,7]
[362114242,1748002293642,-151.0,0.000288,7]
[362114243,1748002293652,-150.0,0.00028805,2]
[362114244,1748002293662,-183.081,0.00028805,2]
[362114245,1748002293672,-219.271,0.00028822,2]
[362114246,1748002293682,-150.548,0.00028822,2]
[362114247,1748002293692,-150.384,0.00028822,2]
[362114248,1748002293701,-284.28,0.00028822,2]
[362114249,1748002293711,-238.851,0.00028822,2]
[362114250,1748002293722,-213.331,0.00028822,2]
[362114251,1748002293732,-183.209,0.00028822,2]
[362114252,1748002293742,-157.444,0.00028822,2]
[362114253,1748002293754,-150.85,0.00028822,2]
[362114254,1748002293766,-150.331,0.00028822,2]
[362114255,1748002293777,-1046.37,0.00028822,2]
[362114256,1748002293787,-1310.0,0.00028822,2]
[362114257,1748002293799,-631.0,0.00028822,2]
[362114258,1748002293809,-812.0,0.00028822,2]
[362114259,1748002293819,-586.0,0.00028822,2]
[362114260,1748002293830,-1498.512,0.00028822,2]
[362114261,1748002293841,-921.0,0.00028822,2]
[362114262,1748002293853,-575.203,0.00028822,2]
[362114263,1748002293863,-1351.702,0.00028822,2]
[362114264,1748002293873,-462.50604744,0.00028831,19]
[362114265,1748002293884,-4666.84678925,0.00028841,2]
[362114266,1748002293894,-1404.8168269,0.00028864,2]
[362114267,1748002293904,-144821.6347684,0.00028864,2]
[362114268,1748002293914,-10498.32057604,0.0002889,2]
[362114269,1748002293925,-5900.0,0.000289,10]
[362114270,1748002293936,-467.91949869,0.00028904,4]
[362114271,1748002293946,-420.0,0.00028904,4]
[362114272,1748002293957,-420.0,0.00028904,4]
[362114273,1748002293967,-420.0,0.00028904,4]
[362114274,1748002293978,-420.0,0.00028904,4]
[362114275,1748002293989,-493.60452134,0.00028904,4]
[362114276,1748002293999,-699.81,0.00028904,4]
[362114277,1748002294012,-934.23,0.00028904,4]
[362114278,1748002294022,-523.84190193,0.00028904,4]
[362114279,1748002294032,-420.0,0.00028904,4]
[362114280,1748002294043,-420.0,0.00028904,4]
[362114281,1748002294054,-157.86987223,0.00028904,4]
[362114282,1748002294064,-765.64,0.00028904,4]
[362114283,1748002294075,-420.0,0.00028904,4]
[362114284,1748002294085,-420.0,0.00028904,4]
[362114285,1748002294095,-414.09,0.00028904,4]
[362114286,1748002294104,-420.0,0.00028904,4]
[362114287,1748002294114,-1213.63,0.00028904,4]
[362114288,1748002294124,-2301.13,0.00028904,4]
[362114289,1748002294134,-420.0,0.00028904,4]
[362114290,1748002294143,-420.0,0.00028904,4]
[362114291,1748002294153,-2104.51,0.00028904,4]
[362114292,1748002294163,-1056.15,0.00028904,4]
[362114293,1748002294173,-203.23,0.00028904,4]
[362114294,1748002294184,-1235.93,0.00028904,4]
[362114295,1748002294193,-420.0,0.00028904,4]
[362114296,1748002294203,-820.55,0.00028904,4]
[362114297,1748002294213,-420.0,0.00028904,4]
[362114298,1748002294222,-2942.65,0.00028904,4]
[362114299,1748002294232,-3091.64,0.00028904,4]
[362114300,1748002294242,-824.71,0.00028904,4]
[362114301,1748002294252,-1143.69,0.00028904,2]
[362114302,1748002294264,-420.0,0.00028904,4]
[362114303,1748002294274,-420.0,0.00028904,4]
[362114304,1748002294285,-589.55,0.00028904,4]
[362114305,1748002294296,-930.62,0.00028904,4]
[362114306,1748002294306,-422.82,0.00028904,4]
[362114307,1748002294316,-1759.35,0.00028904,4]
[362114308,1748002294326,-420.0,0.00028904,4]
[362114309,1748002294336,-420.0,0.00028904,4]
[362114310,1748002294346,-420.0,0.00028904,4]
[362114311,1748002294356,-420.0,0.00028904,4]
[362114312,1748002294366,-420.0,0.00028904,4]
[362114313,1748002294375,-494.39,0.00028904,4]
[362114314,1748002294386,-2941.71,0.00028904,4]
[362114315,1748002294395,-737.93,0.00028904,4]
[362114316,1748002294405,-420.0,0.00028904,4]
[362114317,1748002294415,-420.0,0.00028904,4]
[362114318,1748002294424,-719.56,0.00028904,4]
[362114319,1748002294434,-234.52609821,0.00028904,4]
[362114320,1748002294443,-1548.3,0.00028904,2]
[362114321,1748002294453,-586.0,0.00028904,4]
[362114322,1748002294463,-7122.89,0.00028904,4]
[362114323,1748002294473,-420.0,0.00028904,4]
[362114324,1748002294482,-420.0,0.00028904,4]
[362114325,1748002294492,-420.0,0.00028904,4]
[362114326,1748002294501,-420.0,0.00028904,4]
[362114327,1748002294513,-414.73,0.00028904,4]
[362114328,1748002294523,-420.0,0.00028904,4]
[362114329,1748002294533,-420.0,0.00028904,2]
[362114330,1748002294544,-420.0,0.00028904,4]
[362114331,1748002294554,-1068.14,0.00028904,4]
[362114332,1748002294564,-420.0,0.00028904,4]
[362114333,1748002294574,-420.0,0.00028904,4]
[362114334,1748002294584,-373.57857913,0.00028904,4]
[362114335,1748002294594,-636.93,0.00028904,4]
[362114336,1748002294603,-420.0,0.00028904,4]
[362114337,1748002294614,-1034.39,0.00028904,4]
[362114338,1748002294623,-420.0,0.00028904,4]
[362114339,1748002294634,-325.390032,0.00028904,2]
[362114340,1748002294644,-745.56,0.00028904,4]
[362114341,1748002294654,-164.39240092,0.00028904,30]
[362114342,1748002294664,-6893.64930074,0.00028915,2]
[362114343,1748002294674,-34219.86250871,0.00028941,2]
[362114344,1748002294684,-500.0,0.00028994,2]
[362114345,1748002294694,-988.07302152,0.00029,2]
[362114346,1748002294704,-191.0,0.00029,120]
[362114347,1748002294714,-152.72,0.00029,2]
[362114348,1748002294723,-152.72,0.00029,2]
[362114349,1748002294733,-420.0,0.00029041,4]
[362114350,1748002294743,-420.0,0.00029041,4]
[362114351,1748002294754,-420.0,0.00029041,4]
[362114352,1748002294767,-527.45582381,0.00029041,4]
[362114353,1748002294779,-699.81,0.00029041,4]
[362114354,1748002294789,-934.23,0.00029041,4]
[362114355,1748002294798,-353.25810959,0.00029041,4]
[362114356,1748002294809,-420.0,0.00029041,4]
[362114357,1748002294819,-765.64,0.00029041,4]
[362114358,1748002294830,-420.0,0.00029041,4]
[362114359,1748002294840,-420.0,0.00029041,4]
[362114360,1748002294852,-420.0,0.00029041,4]
[362114361,1748002294862,-1213.63,0.00029041,4]
[362114362,1748002294874,-2301.13,0.00029041,4]
[362114363,1748002294884,-420.0,0.00029041,4]
[362114364,1748002294894,-420.0,0.00029041,4]
[362114365,1748002294903,-2104.51,0.00029041,4]
[362114366,1748002294913,-1056.15,0.00029041,4]
[362114367,1748002294923,-1235.93,0.00029041,4]
[362114368,1748002294933,-568.56338811,0.00029041,4]
[362114369,1748002294943,-820.55,0.00029041,4]
[362114370,1748002294954,-420.0,0.00029041,4]
[362114371,1748002294964,-2942.65,0.00029041,4]
[362114372,1748002294974,-3091.64,0.00029041,4]
[362114373,1748002294984,-824.71,0.00029041,4]
[362114374,1748002294994,-1143.69,0.00029041,2]
[362114375,1748002295004,-420.0,0.00029041,4]
[362114376,1748002295016,-420.0,0.00029041,4]
[362114377,1748002295025,-589.55,0.00029041,4]
[362114378,1748002295036,-930.62,0.00029041,4]
[362114379,1748002295046,-1759.35,0.00029041,4]
[362114380,1748002295057,-420.0,0.00029041,4]
[362114381,1748002295067,-369.01397778,0.00029041,4]
[362114382,1748002295078,-420.0,0.00029041,4]
[362114383,1748002295088,-420.0,0.00029041,4]
[362114384,1748002295098,-420.0,0.00029041,4]
[362114385,1748002295108,-494.39,0.00029041,4]
[362114386,1748002295118,-2941.71,0.00029041,4]
[362114387,1748002295129,-737.93,0.00029041,4]
[362114388,1748002295139,-420.0,0.00029041,4]
[362114389,1748002295150,-420.0,0.00029041,4]
[362114390,1748002295160,-719.56,0.00029041,4]
[362114391,1748002295171,-1548.3,0.00029041,2]
[362114392,1748002295181,-586.0,0.00029041,4]
[362114393,1748002295192,-7122.89,0.00029041,4]
[362114394,1748002295378,-420.0,0.00029041,4]
[362114395,1748002295415,-420.0,0.00029041,4]
[362114396,1748002295425,-420.0,0.00029041,4]
[362114397,1748002295435,-266.03,0.00029041,4]
[362114398,1748002295446,-420.0,0.00029041,4]
[362114399,1748002295456,-420.0,0.00029041,2]
[362114400,1748002295465,-420.0,0.00029041,4]
[362114401,1748002295475,-1068.14,0.00029041,4]
[362114402,1748002295485,-254.58,0.00029041,4]
[362114403,1748002295495,-420.0,0.00029041,4]
[362114404,1748002295505,-636.93,0.00029041,4]
[362114405,1748002295518,-307.88674033,0.00029041,4]
[362114406,1748002295528,-1034.39,0.00029041,4]
[362114407,1748002295539,-420.0,0.00029041,4]
[362114408,1748002295549,-745.56,0.00029041,4]
[362114409,1748002295559,-1000.0,0.00029047,2]
[362114410,1748002295568,-223.0315306,0.00029065,2]
[362114411,1748002295579,-151.0,0.00029078,7]
[362114412,1748002295589,-203.0,0.0002913,2]
[362114413,1748002295598,-461.50644627,0.00029178,4]
[362114414,1748002295608,-170.27,0.00029178,4]
[362114415,1748002295618,-283.22,0.00029178,4]
[362114416,1748002295627,-699.81,0.00029178,4]
[362114417,1748002295637,-934.23,0.00029178,4]
[362114418,1748002295647,-420.0,0.00029178,4]
[362114419,1748002295657,-765.64,0.00029178,4]
[362114420,1748002295667,-420.0,0.00029178,4]
[362114421,1748002295677,-420.0,0.00029178,4]
[362114422,1748002295687,-256.64,0.00029178,4]
[362114423,1748002295696,-1213.63,0.00029178,4]
[362114424,1748002295706,-2301.13,0.00029178,4]
[362114425,1748002295715,-187.12586059,0.00029178,4]
[362114426,1748002295725,-420.0,0.00029178,4]
[362114427,1748002295735,-2104.51,0.00029178,4]
[362114428,1748002295745,-1056.15,0.00029178,4]
[362114429,1748002295760,-1235.93,0.00029178,4]
[362114430,1748002295770,-820.55,0.00029178,4]
[362114431,1748002295780,-243.04,0.00029178,4]
[362114432,1748002295789,-2942.65,0.00029178,4]
[362114433,1748002295799,-3091.64,0.00029178,4]
[362114434,1748002295809,-824.71,0.00029178,4]
[362114435,1748002295819,-1143.69,0.00029178,2]
[362114436,1748002295829,-420.0,0.00029178,4]
[362114437,1748002295840,-420.0,0.00029178,4]
[362114438,1748002295850,-589.55,0.00029178,4]
[362114439,1748002295861,-930.62,0.00029178,4]
[362114440,1748002295871,-1759.35,0.00029178,4]
[362114441,1748002295881,-225.24893449,0.00029178,4]
[362114442,1748002295891,-420.0,0.00029178,4]
[362114443,1748002295901,-227.44,0.00029178,4]
[362114444,1748002295912,-420.0,0.00029178,4]
[362114445,1748002295921,-494.39,0.00029178,4]
[362114446,1748002295932,-2941.71,0.00029178,4]
[362114447,1748002295942,-737.93,0.00029178,4]
[362114448,1748002295952,-420.0,0.00029178,4]
[362114449,1748002295963,-420.0,0.00029178,4]
[362114450,1748002295973,-719.56,0.00029178,4]
[362114451,1748002295983,-1548.3,0.00029178,2]
[362114452,1748002295993,-586.0,0.00029178,4]
[362114453,1748002296002,-7122.89,0.00029178,4]
[362114454,1748002296016,-420.0,0.00029178,4]
[362114455,1748002296026,-420.0,0.00029178,4]
[362114456,1748002296036,-420.0,0.00029178,4]
[362114457,1748002296046,-488.84883913,0.00029178,4]
[362114458,1748002296056,-420.0,0.00029178,2]
[362114459,1748002296066,-420.0,0.00029178,4]
[362114460,1748002296076,-1068.14,0.00029178,4]
[362114461,1748002296087,-420.0,0.00029178,4]
[362114462,1748002296097,-636.93,0.00029178,4]
[362114463,1748002296106,-239.88,0.00029178,4]
[362114464,1748002296115,-1034.39,0.00029178,4]
[362114465,1748002296126,-745.56,0.00029178,4]
[362114466,1748002296136,-10498.32057604,0.0002919,2]
[362114467,1748002296146,-6893.64930074,0.00029209,2]
[362114468,1748002296155,-164.39240092,0.00029233,30]
[362114469,1748002296165,-151.0,0.00029275,7]
[362114470,1748002296175,-500.0,0.00029281,7]
[362114471,1748002296185,-699.81,0.00029315,4]
[362114472,1748002296195,-934.23,0.00029315,4]
[362114473,1748002296205,-420.0,0.00029315,4]
[362114474,1748002296215,-765.64,0.00029315,4]
[362114475,1748002296225,-420.0,0.00029315,4]
[362114476,1748002296235,-198.7265455,0.00029315,4]
[362114477,1748002296244,-1213.63,0.00029315,4]
[362114478,1748002296255,-2301.13,0.00029315,4]
[362114479,1748002296268,-420.0,0.00029315,4]
[362114480,1748002296278,-2104.51,0.00029315,4]
[362114481,1748002296290,-1056.15,0.00029315,4]
[362114482,1748002296300,-1235.93,0.00029315,4]
[362114483,1748002296311,-820.55,0.00029315,4]
[362114484,1748002296320,-2942.65,0.00029315,4]
[362114485,1748002296330,-3091.64,0.00029315,4]
[362114486,1748002296340,-824.71,0.00029315,4]
[362114487,1748002296349,-1143.69,0.00029315,2]
[362114488,1748002296359,-327.85615459,0.00029315,4]
[362114489,1748002296368,-461.26,0.00029315,4]
[362114490,1748002296378,-589.55,0.00029315,4]
[362114491,1748002296387,-930.62,0.00029315,4]
[362114492,1748002296397,-1759.35,0.00029315,4]
[362114493,1748002296407,-420.0,0.00029315,4]
[362114494,1748002296417,-420.0,0.00029315,4]
[362114495,1748002296426,-494.39,0.00029315,4]
[362114496,1748002296436,-2941.71,0.00029315,4]
[362114497,1748002296446,-737.93,0.00029315,4]
[362114498,1748002296455,-563.47,0.00029315,4]
[362114499,1748002296465,-420.0,0.00029315,4]
[362114500,1748002296475,-719.56,0.00029315,4]
[362114501,1748002296485,-1548.3,0.00029315,2]
[362114502,1748002296495,-586.0,0.00029315,4]
[362114503,1748002296504,-7122.89,0.00029315,4]
[362114504,1748002296516,-420.0,0.00029315,4]
[362114505,1748002296526,-420.0,0.00029315,4]
[362114506,1748002296535,-420.0,0.00029315,4]
[362114507,1748002296545,-420.0,0.00029315,2]
[362114508,1748002296555,-160.8,0.00029315,4]
[362114509,1748002296564,-1068.14,0.00029315,4]
[362114510,1748002296573,-420.0,0.00029315,4]
[362114511,1748002296583,-636.93,0.00029315,4]
[362114512,1748002296593,-1034.39,0.00029315,4]
[362114513,1748002296603,-745.56,0.00029315,4]
[362114514,1748002296612,-259.48063044,0.00029352,2]
[362114515,1748002296622,-462.50604744,0.00029417,21]
[362114516,1748002296631,-699.81,0.00029452,4]
[362114517,1748002296641,-934.23,0.00029452,4]
[362114518,1748002296651,-420.0,0.00029452,4]
[362114519,1748002296661,-765.64,0.00029452,4]
[362114520,1748002296670,-420.0,0.00029452,4]
[362114521,1748002296679,-1213.63,0.00029452,4]
[362114522,1748002296689,-2301.13,0.00029452,4]
[362114523,1748002296699,-420.0,0.00029452,4]
[362114524,1748002296708,-2104.51,0.00029452,4]
[362114525,1748002296718,-1056.15,0.00029452,4]
[362114526,1748002296727,-1235.93,0.00029452,4]
[362114527,1748002296736,-820.55,0.00029452,4]
[362114528,1748002296746,-2942.65,0.00029452,4]
[362114529,1748002296761,-3091.64,0.00029452,4]
[362114530,1748002296771,-824.71,0.00029452,4]
[362114531,1748002296780,-1143.69,0.00029452,2]
[362114532,1748002296789,-589.55,0.00029452,4]
[362114533,1748002296799,-930.62,0.00029452,4]
[362114534,1748002296809,-1759.35,0.00029452,4]
[362114535,1748002296818,-420.0,0.00029452,4]
[362114536,1748002296827,-420.0,0.00029452,4]
[362114537,1748002296837,-494.39,0.00029452,4]
[362114538,1748002296847,-2941.71,0.00029452,4]
[362114539,1748002296856,-737.93,0.00029452,4]
[362114540,1748002296866,-420.0,0.00029452,4]
[362114541,1748002296877,-719.56,0.00029452,4]
[362114542,1748002296886,-1548.3,0.00029452,2]
[362114543,1748002296897,-586.0,0.00029452,4]
[362114544,1748002296906,-7122.89,0.00029452,4]
[362114545,1748002296916,-420.0,0.00029452,4]
[362114546,1748002296926,-420.0,0.00029452,4]
[362114547,1748002296935,-420.0,0.00029452,4]
[362114548,1748002296945,-420.0,0.00029452,2]
[362114549,1748002296955,-1068.14,0.00029452,4]
[362114550,1748002296965,-420.0,0.00029452,4]
[362114551,1748002296976,-636.93,0.00029452,4]
[362114552,1748002296987,-1034.39,0.00029452,4]
[362114553,1748002296997,-745.56,0.00029452,4]
[362114554,1748002297007,-366.20930736,0.00029462,2]
[362114555,1748002297022,-193.14649436,0.00029489,2]
[362114556,1748002297032,-10498.32057604,0.00029489,2]
[362114557,1748002297042,-2132.68,0.000295,2]
[362114558,1748002297051,-6893.64930074,0.00029504,2]
[362114559,1748002297061,-164.39240092,0.00029534,30]
[362114560,1748002297070,-242.08563263,0.00029555,7]
[362114561,1748002297080,-700.0,0.00029555,7]
[362114562,1748002297090,-699.81,0.00029589,4]
[362114563,1748002297100,-934.23,0.00029589,4]
[362114564,1748002297109,-420.0,0.00029589,4]
[362114565,1748002297119,-765.64,0.00029589,4]
[362114566,1748002297128,-420.0,0.00029589,4]
[362114567,1748002297138,-1213.63,0.00029589,4]
[362114568,1748002297148,-2301.13,0.00029589,4]
[362114569,1748002297157,-173.37843172,0.00029589,4]
[362114570,1748002297166,-2104.51,0.00029589,4]
[362114571,1748002297176,-1056.15,0.00029589,4]
[362114572,1748002297185,-1235.93,0.00029589,4]
[362114573,1748002297195,-820.55,0.00029589,4]
[362114574,1748002297204,-2942.65,0.00029589,4]
[362114575,1748002297214,-3091.64,0.00029589,4]
[362114576,1748002297223,-824.71,0.00029589,4]
[362114577,1748002297233,-1143.69,0.00029589,2]
[362114578,1748002297242,-589.55,0.00029589,4]
[362114579,1748002297252,-930.62,0.00029589,4]
[362114580,1748002297264,-1759.35,0.00029589,4]
[362114581,1748002297274,-554.82,0.00029589,4]
[362114582,1748002297283,-420.0,0.00029589,4]
[362114583,1748002297293,-494.39,0.00029589,4]
[362114584,1748002297302,-2941.71,0.00029589,4]
[362114585,1748002297312,-737.93,0.00029589,4]
[362114586,1748002297321,-420.0,0.00029589,4]
[362114587,1748002297331,-719.56,0.00029589,4]
[362114588,1748002297340,-1548.3,0.00029589,2]
[362114589,1748002297349,-586.0,0.00029589,4]
[362114590,1748002297359,-7122.89,0.00029589,4]
[362114591,1748002297369,-420.0,0.00029589,4]
[362114592,1748002297378,-420.0,0.00029589,4]
[362114593,1748002297388,-313.28031757,0.00029589,4]
[362114594,1748002297401,-420.0,0.00029589,2]
[362114595,1748002297410,-1068.14,0.00029589,4]
[362114596,1748002297419,-420.0,0.00029589,4]
[362114597,1748002297429,-636.93,0.00029589,4]
[362114598,1748002297438,-1034.39,0.00029589,4]
[362114599,1748002297448,-745.56,0.00029589,4]
[362114600,1748002297457,-958.6434,0.000296,2]
[362114601,1748002297467,-957.4523,0.000296,2]
[362114602,1748002297477,-185.95,0.00029621,120]
[362114603,1748002297486,-152.0,0.00029631,3]
[362114604,1748002297496,-196.13,0.00029637,2]
[362114605,1748002297506,-1524.57815,0.0002964,2]
[362114606,1748002297518,-14985.6,0.000297,7]
[362114607,1748002297527,-500.0,0.00029725,2]
[362114608,1748002297536,-699.81,0.00029726,4]
[362114609,1748002297546,-934.23,0.00029726,4]
[362114610,1748002297555,-420.0,0.00029726,4]
[362114611,1748002297564,-765.64,0.00029726,4]
[362114612,1748002297574,-420.0,0.00029726,4]
[362114613,1748002297583,-1213.63,0.00029726,4]
[362114614,1748002297593,-2301.13,0.00029726,4]
[362114615,1748002297602,-2104.51,0.00029726,4]
[362114616,1748002297611,-1056.15,0.00029726,4]
[362114617,1748002297621,-1235.93,0.00029726,4]
[362114618,1748002297631,-820.55,0.00029726,4]
[362114619,1748002297641,-2942.65,0.00029726,4]
[362114620,1748002297650,-3091.64,0.00029726,4]
[362114621,1748002297659,-824.71,0.00029726,4]
[362114622,1748002297669,-1143.69,0.00029726,2]
[362114623,1748002297678,-589.55,0.00029726,4]
[362114624,1748002297687,-930.62,0.00029726,4]
[362114625,1748002297697,-1759.35,0.00029726,4]
[362114626,1748002297706,-420.0,0.00029726,4]
[362114627,1748002297715,-494.39,0.00029726,4]
[362114628,1748002297724,-2941.71,0.00029726,4]
[362114629,1748002297733,-737.93,0.00029726,4]
[362114630,1748002297796,-420.0,0.00029726,4]
[362114631,1748002297807,-719.56,0.00029726,4]
[362114632,1748002297816,-1548.3,0.00029726,2]
[362114633,1748002297826,-586.0,0.00029726,4]
[362114634,1748002297835,-7122.89,0.00029726,4]
[362114635,1748002297847,-549.50650111,0.00029726,4]
[362114636,1748002297858,-420.0,0.00029726,4]
[362114637,1748002297868,-274.60014792,0.00029726,2]
[362114638,1748002297878,-1068.14,0.00029726,4]
[362114639,1748002297887,-420.0,0.00029726,4]
[362114640,1748002297897,-636.93,0.00029726,4]
[362114641,1748002297906,-1034.39,0.00029726,4]
[362114642,1748002297916,-745.56,0.00029726,4]
[362114643,1748002297926,-10498.32057604,0.00029789,2]
[362114644,1748002297935,-6893.64930074,0.00029798,2]
[362114645,1748002297945,-387.7476239,0.000298,2]
[362114646,1748002297954,-202.38064,0.000298,2]
[362114647,1748002297964,-168.28317843,0.00029812,2]
[362114648,1748002297974,-203.0,0.0002983,2]
[362114649,1748002297983,-258.5,0.0002983,15]
[362114650,1748002297993,-500.0,0.00029839,120]
[362114651,1748002298003,-1345.008735,0.00029839,120]
[362114652,1748002298016,-507.651365,0.00029839,120]
[362114653,1748002298025,-163.05890484,0.00029841,15]
[362114654,1748002298035,-995.893,0.0002985,2]
[362114655,1748002298046,-2000.0,0.0002985,2]
[362114656,1748002298057,-1317.0634081,0.0002986,2]
[362114657,1748002298067,-135775.1930399,0.0002986,2]
[362114658,1748002298078,-10862.853829,0.0002986,2]
[362114659,1748002298088,-4451.9243619,0.0002986,2]
[362114660,1748002298099,-699.81,0.00029863,4]
[362114661,1748002298109,-934.23,0.00029863,4]
[362114662,1748002298120,-197.00828707,0.00029863,4]
[362114663,1748002298130,-765.64,0.00029863,4]
[362114664,1748002298140,-454.32473445,0.00029863,4]
[362114665,1748002298150,-1213.63,0.00029863,4]
[362114666,1748002298160,-2301.13,0.00029863,4]
[362114667,1748002298169,-2104.51,0.00029863,4]
[362114668,1748002298179,-1056.15,0.00029863,4]
[362114669,1748002298189,-1235.93,0.00029863,4]
[362114670,1748002298200,-820.55,0.00029863,4]
[362114671,1748002298210,-2942.65,0.00029863,4]
[362114672,1748002298219,-3091.64,0.00029863,4]
[362114673,1748002298229,-824.71,0.00029863,4]
[362114674,1748002298239,-1143.69,0.00029863,2]
[362114675,1748002298248,-589.55,0.00029863,4]
[362114676,1748002298259,-930.62,0.00029863,4]
[362114677,1748002298271,-1759.35,0.00029863,4]
[362114678,1748002298280,-420.0,0.00029863,4]
[362114679,1748002298290,-494.39,0.00029863,4]
[362114680,1748002298299,-2941.71,0.00029863,4]
[362114681,1748002298308,-737.93,0.00029863,4]
[362114682,1748002298318,-420.0,0.00029863,4]
[362114683,1748002298327,-719.56,0.00029863,4]
[362114684,1748002298338,-586.0,0.00029863,4]
[362114685,1748002298347,-1548.3,0.00029863,2]
[362114686,1748002298357,-7122.89,0.00029863,4]
[362114687,1748002298367,-420.0,0.00029863,4]
[362114688,1748002298376,-1068.14,0.00029863,4]
[362114689,1748002298385,-420.0,0.00029863,4]
[362114690,1748002298394,-636.93,0.00029863,4]
[362114691,1748002298404,-1034.39,0.00029863,4]
[362114692,1748002298413,-745.56,0.00029863,4]
[362114693,1748002298423,-500.0,0.00029879,2]
[362114694,1748002298433,-500.0,0.00029879,2]
[362114695,1748002298442,-150.0,0.0002988,120]
[362114696,1748002298451,-347675.15263708,0.0002988,4]
[362114697,1748002298461,-500.0,0.00029889,2]
[362114698,1748002298470,-250000.0,0.0002989,2]
[362114699,1748002298479,-167.62513039,0.00029897,2]
[362114700,1748002298489,-150.0,0.00029899,2]
[362114701,1748002298497,-150.0,0.00029899,2]
[362114702,1748002298507,-150.0,0.00029899,2]
[362114703,1748002298518,-150.0,0.00029899,2]
[362114704,1748002298527,-4473.54585476,0.00029899,2]
[362114705,1748002298536,-6139.09636572,0.00029899,2]
[362114706,1748002298545,-30836.63118688,0.00029899,2]
[362114707,1748002298555,-8973.10641239,0.00029899,2]
[362114708,1748002298564,-25093.1363098,0.000299,30]
[362114709,1748002298573,-459.64323173,0.000299,2]
[362114710,1748002298583,-459.6432317,0.000299,2]
[362114711,1748002298592,-459.6432317,0.000299,2]
[362114712,1748002298601,-459.6432317,0.000299,2]
[362114713,1748002298610,-1100.0,0.000299,10]
[362114714,1748002298619,-459.6432317,0.000299,2]
[362114715,1748002298630,-459.6432317,0.000299,2]
[362114716,1748002298639,-459.6432317,0.000299,2]
[362114717,1748002298648,-459.6432317,0.000299,2]
[362114718,1748002298657,-459.6432317,0.000299,2]
[362114719,1748002298666,-459.6432317,0.000299,2]
[362114720,1748002298675,-459.6432317,0.000299,2]